bitfinex/quotes_SOLUSD_20250625
["timestamp","ask_amount","ask_price","bid_price","bid_amount"]
[1750811741278,5.58246944,145.23,145.19,6.88732134]
[1750811741662,0.68849048,145.25,145.19,12.46979078]
[1750811741859,5.58246944,145.24,145.19,12.46979078]
[1750811742069,5.58246944,145.23,145.19,12.46979078]
[1750811742271,5.58246944,145.23,145.19,6.88732134]
[1750811742473,5.58246944,145.24,145.19,12.46979078]
[1750811742672,5.58246944,145.25,145.2,5.58246944]
[1750811742865,5.58246944,145.24,145.2,5.58246944]
[1750811743073,5.58246944,145.24,145.19,12.46979078]
[1750811743271,2.3211377,145.26,145.19,12.46979078]
[1750811743476,5.58246944,145.23,145.19,6.88732134]
[1750811743867,5.58246944,145.23,145.19,12.46979078]
[1750811744584,5.58246944,145.23,145.19,6.88732134]
[1750811745680,5.58246944,145.21,145.17,1.4903745]
[1750811745981,5.58246944,145.2,145.17,1.4903745]
[1750811746187,5.58246944,145.21,145.17,1.4903745]
[1750811746559,5.58246944,145.21,145.17,8.37868368]
[1750811746864,5.58246944,145.2,145.17,1.4903745]
[1750811747578,5.58246944,145.19,145.17,1.4903745]
[1750811747877,5.58246944,145.2,145.17,1.4903745]
[1750811749783,5.58246944,145.2,145.17,8.3788059]
[1750811750304,5.58246944,145.2,145.17,1.4903745]
[1750811750672,0.68867865,145.21,145.17,1.4903745]
[1750811750985,5.58246944,145.2,145.17,1.4903745]
[1750811751685,5.58246944,145.18,145.17,1.4903745]
[1750811751994,5.58246944,145.19,145.17,1.4903745]
[1750811753072,5.58246944,145.18,145.17,1.4903745]
[1750811755790,5.58246944,145.19,145.17,1.4903745]
[1750811755997,6.9,145.24,145.17,8.37881875]
[1750811755998,5.58246944,145.21,145.17,8.37881875]
[1750811756369,5.58246944,145.2,145.17,8.37881875]
[1750811756602,0.68857997,145.23,145.17,1.4903745]
[1750811756802,5.58246944,145.19,145.17,1.4903745]
[1750811757995,5.58246944,145.18,145.17,1.4903745]
[1750811759078,0.68874743,145.2,145.17,1.4903745]
[1750811759406,5.58246944,145.18,145.17,1.4903745]
[1750811759991,26.68866867,145.21,145.17,1.4903745]
[1750811760200,5.58246944,145.19,145.17,1.4903745]
[1750811761310,5.58246944,145.18,145.17,1.4903745]
[1750811761711,26.68867696,145.21,145.17,1.4903745]
[1750811761891,6.9,145.24,145.17,8.3786857]
[1750811762202,5.58246944,145.23,145.18,5.58246944]
[1750811762500,5.58246944,145.23,145.19,5.58246944]
[1750811762802,7.58852011,145.24,145.19,5.58246944]
[1750811763100,5.58246944,145.23,145.19,5.58246944]
[1750811763305,5.58246944,145.23,145.18,5.58246944]
[1750811763475,5.58246944,145.22,145.18,5.58246944]
[1750811763678,5.58246944,145.22,145.17,20.45015514]
[1750811764286,5.58246944,145.21,145.17,13.56184394]
[1750811764487,5.58246944,145.21,145.17,102.26184394]
[1750811765382,6.27113251,145.21,145.17,102.26184394]
[1750811766281,5.58246944,145.2,145.17,90.1903745]
[1750811766780,5.58246944,145.22,145.18,5.58246944]
[1750811767096,5.58246944,145.22,145.18,94.28246944]
[1750811767297,5.58246944,145.23,145.19,5.58246944]
[1750811767600,5.58246944,145.23,145.19,12.46969415]
[1750811769278,6.9,145.24,145.2,5.58246944]
[1750811769623,0.68828785,145.29,145.23,5.58246944]
[1750811769775,6.27075729,145.29,145.24,5.58246944]
[1750811770207,5.58246944,145.29,145.24,5.58246944]
[1750811770388,5.58246944,145.3,145.26,5.58246944]
[1750811770576,0.6881567,145.32,145.26,5.58246944]
[1750811770777,14.87115123,145.35,145.24,18.64964886]
[1750811770985,9.79466515,145.35,145.29,5.58246944]
[1750811771193,9.10665209,145.35,145.24,256.24964886]
[1750811771381,5.58246944,145.32,145.28,5.58246944]
[1750811771678,9.79469062,145.35,145.28,12.46528607]
[1750811772005,5.58246944,145.33,145.29,5.58246944]
[1750811772299,5.58246944,145.34,145.29,5.58246944]
[1750811772474,9.79464661,145.35,145.29,5.58246944]
[1750811772682,5.58246944,145.34,145.29,5.58246944]
[1750811772880,5.58246944,145.34,145.3,5.58246944]
[1750811773278,8.3527,145.38,145.3,5.58246944]
[1750811773279,9.0405634,145.38,145.3,5.58246944]
[1750811773483,5.58246944,145.36,145.32,6.88122775]
[1750811774186,5.58246944,145.36,145.32,12.46369719]
[1750811774508,6.84,145.38,145.33,5.58246944]
[1750811774820,1.5523,145.42,145.32,24.0846409]
[1750811775109,5.58246944,145.43,145.39,5.58246944]
[1750811775402,5.58246944,145.41,145.37,6.1628]
[1750811775606,5.58246944,145.41,145.38,6.87852524]
[1750811775907,5.58246944,145.41,145.37,18.62416437]
[1750811776278,9.29064327,145.41,145.37,22.3323382]
[1750811776805,9.29064327,145.42,145.37,22.3323382]
[1750811777300,9.29064327,145.42,145.38,9.29064327]
[1750811777489,9.29064327,145.43,145.38,16.16871022]
[1750811779409,9.97827049,145.43,145.37,13.04168099]
[1750811779607,9.29064327,145.42,145.38,9.29064327]
[1750811780185,9.29064327,145.42,145.37,6.1628]
[1750811780495,9.29064327,145.41,145.36,6.87933122]
[1750811780701,9.29064327,145.42,145.37,9.29064327]
[1750811781501,9.97833237,145.42,145.37,9.29064327]
[1750811782204,9.29064327,145.41,145.37,9.29064327]
[1750811782405,9.29064327,145.4,145.35,95.57988845]
[1750811782595,9.29064327,145.4,145.36,9.29064327]
[1750811783007,9.29064327,145.41,145.36,9.29064327]
[1750811783416,1.71892701,145.44,145.38,9.29064327]
[1750811783417,9.29064327,145.43,145.38,9.29064327]
[1750811783920,9.29064327,145.42,145.38,9.29064327]
[1750811784218,9.29064327,145.41,145.37,97.99064327]
[1750811784406,0.68756875,145.44,145.37,88.7]
[1750811784407,9.29064327,145.4,145.37,88.7]
[1750811784609,9.29064327,145.4,145.36,97.99064327]
[1750811784794,9.29064327,145.39,145.36,88.7]
[1750811785000,9.29064327,145.39,145.35,97.99064327]
[1750811785187,9.29064327,145.39,145.34,104.87095908]
[1750811785388,9.97844913,145.39,145.34,104.87095908]
[1750811785614,9.97844913,145.39,145.35,9.29064327]
[1750811786913,9.29064327,145.39,145.35,9.29064327]
[1750811789016,9.29064327,145.39,145.34,95.58031581]
[1750811789315,9.97844942,145.39,145.35,9.29064327]
[1750811790010,9.97844942,145.39,145.35,97.99064327]
[1750811790314,9.29064327,145.4,145.35,97.99064327]
[1750811791411,9.29064327,145.4,145.35,104.87056967]
[1750811791588,9.29064327,145.4,145.36,9.29064327]
[1750811792011,9.29064327,145.4,145.35,95.5799264]
[1750811792226,9.29064327,145.39,145.35,95.5799264]
[1750811792407,9.97845506,145.39,145.35,104.87056967]
[1750811792821,9.29064327,145.39,145.35,104.87056967]
[1750811793018,0.6877213,145.41,145.35,104.87056967]
[1750811793207,9.29064327,145.4,145.36,9.29064327]
[1750811794921,9.29064327,145.4,145.36,16.16999816]
[1750811795502,0.6877213,145.41,145.36,16.16999816]
[1750811795704,9.29064327,145.4,145.36,16.16999816]
[1750811796010,9.29064327,145.4,145.36,104.86999816]
[1750811796324,5.57496853,145.4,145.36,101.15432342]
[1750811796522,5.57496853,145.4,145.36,88.7]
[1750811796723,5.57496853,145.4,145.36,95.57936255]
[1750811797827,5.57496853,145.37,145.36,88.7]
[1750811798122,5.57496853,145.37,145.3,88.7]
[1750811798317,5.57496853,145.33,145.3,88.7]
[1750811798705,18.64964886,145.39,145.3,88.7]
[1750811798923,5.57496853,145.32,145.3,88.7]
[1750811799100,5.57496853,145.32,145.28,120.27496853]
[1750811799302,5.57496853,145.33,145.28,120.27496853]
[1750811800219,5.57496853,145.33,145.29,6.88258527]
[1750811801108,6.26306024,145.33,145.28,101.158135]
[1750811801310,5.57496853,145.31,145.28,88.7]
[1750811801721,5.57496853,145.3,145.28,88.7]
[1750811801908,5.57496853,145.31,145.28,88.7]
[1750811802414,5.57496853,145.3,145.26,88.7]
[1750811802623,5.57496853,145.3,145.26,101.15915295]
[1750811803119,2.23539171,145.33,145.26,101.15915295]
[1750811803306,2.23539171,145.33,145.27,5.57496853]
[1750811803626,5.57496853,145.31,145.27,5.57496853]
[1750811803829,5.57496853,145.32,145.27,5.57496853]
[1750811804230,5.57496853,145.32,145.26,95.58418442]
[1750811804525,6.26312607,145.32,145.27,12.4586669]
[1750811804829,5.57496853,145.31,145.3,26.0]
[1750811805831,6.26315241,145.31,145.3,26.0]
[1750811806012,5.57496853,145.31,145.3,26.0]
[1750811806217,5.57496853,145.32,145.3,26.0]
[1750811806933,7.81036928,145.33,145.28,12.45815782]
[1750811808040,5.57496853,145.32,145.28,6.88318929]
[1750811808717,5.57496853,145.29,145.27,88.7]
[1750811808919,5.57496853,145.28,145.27,88.7]
[1750811809229,5.57496853,145.28,145.23,148.9]
[1750811809230,5.57496853,145.28,145.24,26.0]
[1750811809420,5.57496853,145.27,145.24,26.0]
[1750811809732,5.57496853,145.28,145.24,26.0]
[1750811810235,6.26330895,145.28,145.24,26.0]
[1750811810534,5.57496853,145.27,145.24,26.0]
[1750811810740,5.57496853,145.27,145.24,114.7]
[1750811811113,6.26330895,145.28,145.24,88.7]
[1750811811528,0.6882976,145.29,145.24,95.58510745]
[1750811811718,5.57496853,145.28,145.24,95.58510745]
[1750811812338,5.57496853,145.28,145.24,95.58498798]
[1750811812509,6.26329918,145.28,145.24,95.58498798]
[1750811812709,5.57496853,145.28,145.24,95.58498798]
[1750811812909,0.68829681,145.29,145.24,101.15995651]
[1750811813118,0.68824629,145.3,145.25,5.57496853]
[1750811813328,0.68824629,145.3,145.24,95.58498798]
[1750811813329,5.57496853,145.29,145.24,95.58498798]
[1750811813635,5.57496853,145.29,145.25,5.57496853]
[1750811813836,5.57496853,145.29,145.25,94.27496853]
[1750811814336,6.26326743,145.29,145.25,88.7]
[1750811815236,5.57496853,145.28,145.25,88.7]
[1750811815840,6.26326743,145.29,145.25,94.27496853]
[1750811816833,6.26326743,145.29,145.25,101.15959437]
[1750811817817,6.26326743,145.29,145.25,94.27496853]
[1750811818040,5.57496853,145.29,145.25,101.15960244]
[1750811818434,6.26322118,145.3,145.25,101.15960244]
[1750811819838,6.26325976,145.29,145.25,101.15960244]
[1750811820145,6.26325976,145.29,145.25,94.27496853]
[1750811820639,5.57496853,145.28,145.25,88.7]
[1750811821432,0.68829123,145.29,145.25,88.7]
[1750811821433,5.57496853,145.27,145.25,88.7]
[1750811821644,5.57496853,145.28,145.25,88.7]
[1750811821835,18.64964886,145.31,145.26,5.57496853]
[1750811822037,24.22461739,145.31,145.26,94.27496853]
[1750811822226,5.57496853,145.3,145.26,94.27496853]
[1750811822739,18.64964886,145.31,145.26,88.7]
[1750811822740,5.57496853,145.29,145.26,88.7]
[1750811823846,5.57496853,145.3,145.26,88.7]
[1750811824736,5.57496853,145.3,145.26,95.58419086]
[1750811825547,5.57496853,145.31,145.26,101.15915939]
[1750811825727,5.57496853,145.31,145.27,5.57496853]
[1750811826038,5.57496853,145.31,145.26,101.15915939]
[1750811826426,0.68815764,145.32,145.26,101.15915939]
[1750811826621,5.57496853,145.31,145.26,101.15915939]
[1750811826826,6.26316669,145.31,145.26,101.15915939]
[1750811827047,6.26312598,145.32,145.27,5.57496853]
[1750811827433,5.57496853,145.31,145.26,95.58419086]
[1750811827755,5.57496853,145.27,145.23,5.57496853]
[1750811828049,18.64964886,145.31,145.22,95.58600179]
[1750811828050,5.57496853,145.26,145.22,95.58600179]
[1750811828236,5.57496853,145.26,145.22,6.88600179]
[1750811828429,2.40849876,145.32,145.22,6.88600179]
[1750811828430,2.40849876,145.32,145.24,5.57496853]
[1750811828634,5.57496853,145.29,145.24,12.45976212]
[1750811828836,5.57496853,145.29,145.25,5.57496853]
[1750811829032,26.0,145.31,145.25,5.57496853]
[1750811829245,26.0,145.29,145.26,5.57496853]
[1750811830545,26.0,145.29,145.25,5.57496853]
[1750811831151,26.68828849,145.29,145.25,5.57496853]
[1750811831527,26.0,145.29,145.25,5.57496853]
[1750811831729,6.26322099,145.3,145.25,5.57496853]
[1750811832845,6.26322099,145.3,145.26,6.88420762]
[1750811833034,6.26317544,145.31,145.26,12.45917615]
[1750811834941,5.57496853,145.3,145.25,5.57496853]
[1750811835632,5.57496853,145.29,145.24,5.57496853]
[1750811835831,5.57496853,145.28,145.23,12.46059822]
[1750811837032,6.26330602,145.28,145.23,101.16059822]
[1750811837228,5.57496853,145.27,145.23,88.7]
[1750811837434,6.26330602,145.28,145.23,94.27496853]
[1750811837743,6.26330602,145.28,145.24,5.57496853]
[1750811837953,6.26326323,145.29,145.24,5.57496853]
[1750811838453,5.57496853,145.28,145.24,5.57496853]
[1750811838756,5.57496853,145.28,145.23,101.16057167]
[1750811838964,6.26336768,145.27,145.23,94.27496853]
[1750811839459,6.26336768,145.27,145.23,88.7]
[1750811839656,5.57496853,145.25,145.2,5.57496853]
[1750811839838,5.57496853,145.24,145.19,94.27496853]
[1750811840371,5.57496853,145.24,145.19,5.57496853]
[1750811840556,5.57496853,145.23,145.18,14.01719387]
[1750811840758,5.57496853,145.24,145.2,5.57496853]
[1750811840936,6.26348574,145.24,145.2,5.57496853]
[1750811842435,6.26348574,145.24,145.19,6.8871794]
[1750811842636,6.26348574,145.24,145.19,12.46214793]
[1750811842858,6.26348574,145.24,145.2,5.57496853]
[1750811843357,6.26348574,145.24,145.2,101.16200502]
[1750811844168,0.68842076,145.26,145.21,5.57496853]
[1750811844362,6.26338929,145.26,145.22,5.57496853]
[1750811844542,6.26338929,145.26,145.2,6.88703649]
[1750811844543,5.57496853,145.25,145.2,5.57496853]
[1750811844935,5.57496853,145.25,145.2,12.46194332]
[1750811845134,6.26346922,145.25,145.19,32.88735421]
[1750811845455,6.26346922,145.25,145.2,5.57496853]
[1750811845955,5.57496853,145.26,145.21,5.57496853]
[1750811847339,5.57496853,145.26,145.22,6.88610384]
[1750811847537,8.2258,145.27,145.22,6.88610384]
[1750811847881,6.56,145.27,145.23,5.57496853]
[1750811848349,12.13496853,145.27,145.23,5.57496853]
[1750811848546,12.82334998,145.27,145.23,5.57496853]
[1750811848765,12.82334998,145.27,145.22,12.46107237]
[1750811849551,12.13496853,145.27,145.22,12.46107237]
[1750811849751,12.13496853,145.27,145.23,5.57496853]
[1750811849952,12.82334849,145.27,145.23,5.57496853]
[1750811850348,12.82334849,145.27,145.22,12.46107237]
[1750811852266,12.82334849,145.27,145.22,101.16107237]
[1750811852468,12.13496853,145.27,145.22,101.16107237]
[1750811852653,6.56,145.27,145.23,5.57496853]
[1750811852859,12.13496853,145.27,145.23,5.57496853]
[1750811853361,12.82334584,145.27,145.23,5.57496853]
[1750811854147,6.56,145.27,145.23,5.57496853]
[1750811854465,12.8233426,145.27,145.23,5.57496853]
[1750811854844,12.13496853,145.27,145.23,12.46040521]
[1750811855045,6.56,145.27,145.23,12.46040521]
[1750811855387,6.56,145.27,145.24,5.57496853]
[1750811855568,7.24838739,145.27,145.19,6.88752668]
[1750811855744,6.56,145.27,145.23,5.57496853]
[1750811856360,7.24838306,145.27,145.23,5.57496853]
[1750811857043,7.24838306,145.27,145.24,5.57496853]
[1750811857248,6.56,145.27,145.24,5.57496853]
[1750811857468,7.24838127,145.27,145.24,5.57496853]
[1750811858463,6.56,145.27,145.24,12.45991811]
[1750811858669,6.56,145.27,145.25,5.57496853]
[1750811860855,5.08394312,145.3,145.26,5.57496853]
[1750811861073,12.35208361,145.32,145.29,5.57496853]
[1750811861972,7.26814049,145.32,145.29,5.57496853]
[1750811862478,12.84310902,145.32,145.28,5.57496853]
[1750811864959,12.84310902,145.32,145.27,5.57496853]
[1750811866684,12.84310902,145.32,145.28,5.57496853]
[1750811867084,12.84310902,145.32,145.28,94.27496853]
[1750811867783,7.26814049,145.32,145.28,94.27496853]
[1750811867991,12.84310902,145.32,145.28,94.27496853]
[1750811869073,7.26814049,145.32,145.28,94.27496853]
[1750811869276,12.84310902,145.32,145.28,94.27496853]
[1750811869881,7.26814049,145.32,145.28,94.27496853]
[1750811870084,12.84310902,145.32,145.28,94.27496853]
[1750811870268,5.57496853,145.31,145.28,88.7]
[1750811871187,6.26319429,145.31,145.28,88.7]
[1750811871385,5.57496853,145.3,145.28,88.7]
[1750811871565,5.57496853,145.29,145.28,88.7]
[1750811871767,5.57496853,145.29,145.25,94.27496853]
[1750811873485,6.26329452,145.28,145.25,88.7]
[1750811873699,5.57496853,145.26,145.25,88.7]
[1750811873907,5.57496853,145.26,145.22,88.7]
[1750811874701,5.57496853,145.26,145.22,94.27496853]
[1750811874992,6.26343197,145.26,145.22,94.27496853]
[1750811875297,6.26343197,145.26,145.22,88.7]
[1750811875479,6.26343197,145.26,145.22,94.27496853]
[1750811875680,6.26343197,145.26,145.22,88.7]
[1750811876266,5.57496853,145.25,145.22,88.7]
[1750811876793,6.26346983,145.25,145.22,88.7]
[1750811877172,0.6885013,145.25,145.22,88.7]
[1750811879497,6.26346983,145.25,145.22,88.7]
[1750811880493,5.57496853,145.24,145.22,88.7]
[1750811881371,6.26352985,145.24,145.22,88.7]
[1750811881872,6.26352985,145.24,145.2,94.27496853]
[1750811882780,6.26352985,145.24,145.2,5.57496853]
[1750811883572,5.57496853,145.25,145.21,5.57496853]
[1750811884099,24.91303815,145.26,145.21,5.57496853]
[1750811884292,24.91303815,145.26,145.19,6.88752668]
[1750811884293,6.26338929,145.26,145.22,5.57496853]
[1750811885001,0.68838974,145.27,145.23,5.57496853]
[1750811885592,11.35647347,145.28,145.23,12.46040195]
[1750811885801,11.35647347,145.28,145.23,6.88543342]
[1750811886002,6.26331479,145.28,145.23,6.88543342]
[1750811886174,0.68834626,145.28,145.23,5.57496853]
[1750811886374,6.26331479,145.28,145.23,5.57496853]
[1750811886701,6.26331479,145.28,145.24,5.57496853]
[1750811887004,0.68834626,145.28,145.24,5.57496853]
[1750811887304,6.26331479,145.28,145.24,5.57496853]
[1750811887515,6.26331479,145.28,145.23,5.57496853]
[1750811888404,6.2633582,145.27,145.23,5.57496853]
[1750811890711,0.68832599,145.28,145.23,12.46051722]
[1750811891008,5.57496853,145.27,145.23,5.57496853]
[1750811891682,5.57496853,145.27,145.22,12.4609754]
[1750811891982,0.68842076,145.26,145.22,5.57496853]
[1750811892180,5.57496853,145.25,145.2,12.46185377]
[1750811892602,5.57496853,145.24,145.2,12.46185377]
[1750811892781,5.57496853,145.24,145.2,5.57496853]
[1750811892979,5.57496853,145.24,145.19,12.46228387]
[1750811893302,5.57496853,145.23,145.19,12.46228387]
[1750811895005,6.2635431,145.23,145.19,5.57496853]
[1750811895605,5.57496853,145.23,145.19,12.46242805]
[1750811896099,0.68853585,145.24,145.19,5.57496853]
[1750811896407,5.57496853,145.23,145.19,5.57496853]
[1750811896705,0.68859,145.23,145.19,88.7]
[1750811896907,6.26355853,145.23,145.19,88.7]
[1750811898901,6.26355853,145.23,145.19,94.27496853]
[1750811899408,6.26355853,145.23,145.19,88.7]
[1750811899703,5.57496853,145.22,145.19,88.7]
[1750811899907,0.68859,145.23,145.19,88.7]
[1750811900109,5.57496853,145.22,145.19,88.7]
[1750811901508,6.26361005,145.22,145.19,88.7]
[1750811904820,5.57496853,145.21,145.19,88.7]
[1750811905003,6.26361005,145.22,145.17,102.63566454]
[1750811906222,6.26361005,145.22,145.18,5.57496853]
[1750811906721,6.26361005,145.22,145.18,12.46292707]
[1750811906930,2.23208617,145.23,145.18,12.46292707]
[1750811907120,7.8070547,145.23,145.18,5.57496853]
[1750811907299,5.57496853,145.22,145.18,5.57496853]
[1750811908098,7.8070547,145.23,145.18,5.57496853]
[1750811908499,7.8070547,145.23,145.18,94.27496853]
[1750811908715,7.8070547,145.23,145.18,101.1628595]
[1750811909130,7.8070547,145.23,145.18,95.58789097]
[1750811909415,1.5435,145.23,145.19,5.57496853]
[1750811909813,6.26350387,145.24,145.18,95.58789097]
[1750811909997,6.26350387,145.24,145.19,5.57496853]
[1750811910400,6.26350387,145.24,145.19,12.46237219]
[1750811910794,6.26350387,145.24,145.19,5.57496853]
[1750811911823,6.26350387,145.24,145.19,12.46247512]
[1750811912717,6.26350387,145.24,145.19,5.57496853]
[1750811913038,6.26350387,145.24,145.19,12.46239035]
[1750811915629,11.35755749,145.25,145.21,5.57496853]
[1750811915829,6.26344892,145.25,145.21,5.57496853]
[1750811916533,18.6772771,145.26,145.18,138.80800385]
[1750811916724,8.0082,145.26,145.22,5.57496853]
[1750811917295,8.0082,145.26,145.18,140.37820385]
[1750811917458,8.0082,145.26,145.22,5.57496853]
[1750811917625,14.27159781,145.26,145.22,5.57496853]
[1750811918216,19.36570638,145.26,145.22,5.57496853]
[1750811918435,14.27159781,145.26,145.22,5.57496853]
[1750811918631,14.27159781,145.26,145.18,133.49020275]
[1750811918632,5.57496853,145.25,145.2,12.46181832]
[1750811919304,5.57496853,145.25,145.21,5.57496853]
[1750811919826,6.26344574,145.25,145.21,5.57496853]
[1750811920409,5.09410857,145.24,145.21,5.57496853]
[1750811920906,6.26344574,145.25,145.21,5.57496853]
[1750811921615,11.35755431,145.25,145.21,5.57496853]
[1750811921814,6.26344574,145.25,145.21,5.57496853]
[1750811923640,6.26344574,145.25,145.2,5.57496853]
[1750811924134,0.68847721,145.25,145.2,12.46196077]
[1750811924512,6.26344574,145.25,145.2,12.46196077]
[1750811925014,11.35755431,145.25,145.2,5.57496853]
[1750811925216,11.35755431,145.25,145.2,12.46194902]
[1750811925627,11.35755431,145.25,145.2,5.57496853]
[1750811926233,5.78258578,145.25,145.2,3.57578276]
[1750811926436,9.35836854,145.25,145.2,3.57578276]
[1750811926813,3.57578276,145.23,145.18,125.16361701]
[1750811927017,3.57578276,145.23,145.18,36.46361701]
[1750811927227,3.57578276,145.22,145.17,8.36058521]
[1750811927418,3.57578276,145.23,145.18,3.57578276]
[1750811927619,8.66989133,145.23,145.18,3.57578276]
[1750811927819,3.57578276,145.23,145.18,3.57578276]
[1750811928034,8.66989133,145.23,145.18,3.57578276]
[1750811928235,3.57578276,145.23,145.18,3.57578276]
[1750811928429,0.68861038,145.22,145.18,3.57578276]
[1750811928929,4.26439314,145.22,145.17,5.04804196]
[1750811929124,5.18028276,145.21,145.17,1.4722592]
[1750811930334,0.68875266,145.19,145.17,1.4722592]
[1750811932139,4.26453542,145.19,145.17,1.4722592]
[1750811932321,24.24310577,145.18,145.17,1.4722592]
[1750811932527,18.64964886,145.18,145.17,1.4722592]
[1750811933037,24.24310577,145.18,145.17,1.4722592]
[1750811933716,66.19461434,145.18,145.17,1.4722592]
[1750811934129,66.88341445,145.18,145.17,1.4722592]
[1750811936140,41.01886548,145.18,145.17,1.4722592]
[1750811936339,36.61355702,145.18,145.17,1.4722592]
[1750811938420,5.08089757,145.19,145.17,1.4722592]
[1750811938616,6.2821833,145.2,145.17,1.4722592]
[1750811939038,11.44089757,145.21,145.17,8.36068449]
[1750811939244,17.03435448,145.21,145.17,13.9541414]
[1750811939439,11.95345691,145.21,145.17,13.9541414]
[1750811939823,6.36,145.21,145.17,13.9541414]
[1750811941145,6.36,145.21,145.18,5.59345691]
[1750811942158,32.28194573,145.25,145.2,5.59345691]
[1750811942450,37.36706046,145.25,145.21,5.59345691]
[1750811942647,26.0,145.25,145.21,12.48000867]
[1750811942830,11.95345691,145.26,145.22,5.59345691]
[1750811944957,7.0484241,145.26,145.22,5.59345691]
[1750811945148,12.64188101,145.26,145.22,5.59345691]
[1750811946538,5.59345691,145.25,145.21,5.59345691]
[1750811947143,5.59345691,145.23,145.19,5.59345691]
[1750811947442,5.59345691,145.22,145.18,5.59345691]
[1750811948245,6.28207676,145.22,145.17,1.4722592]
[1750811948459,5.59345691,145.21,145.17,7.06571611]
[1750811950035,5.59345691,145.2,145.17,1.4722592]
[1750811950351,6.28216578,145.2,145.17,1.4722592]
[1750811950855,5.59345691,145.21,145.17,7.06571611]
[1750811951336,5.59345691,145.22,145.17,7.06571611]
[1750811952232,0.6886578,145.21,145.17,7.06571611]
[1750811952737,0.6886578,145.21,145.17,95.76571611]
[1750811953351,6.28207872,145.22,145.17,102.6541691]
[1750811953559,5.59345691,145.21,145.17,102.6541691]
[1750811953859,6.28207872,145.22,145.18,5.59345691]
[1750811955367,6.28212389,145.21,145.17,95.76571611]
[1750811955968,6.28208676,145.22,145.18,5.59345691]
[1750811956642,5.59345691,145.21,145.17,95.76571611]
[1750811957032,0.68862985,145.22,145.18,5.59345691]
[1750811957033,6.28208676,145.22,145.18,5.59345691]
[1750811957654,5.59345691,145.22,145.18,12.48142614]
[1750811957840,5.59345691,145.23,145.19,5.59345691]
[1750811958638,5.59345691,145.23,145.19,94.29345691]
[1750811959148,6.28202554,145.23,145.19,94.29345691]
[1750811959346,5.59345691,145.22,145.19,88.7]
[1750811959549,5.59345691,145.21,145.19,88.7]
[1750811960965,5.59345691,145.22,145.19,88.7]
[1750811962261,0.6886578,145.21,145.19,88.7]
[1750811963245,6.28208894,145.22,145.19,88.7]
[1750811964357,0.68863203,145.22,145.19,88.7]
[1750811964563,0.6885777,145.23,145.19,101.18083916]
[1750811964865,5.59345691,145.22,145.19,88.7]
[1750811966068,6.28203461,145.23,145.19,88.7]
[1750811968672,6.28203461,145.23,145.19,95.58751914]
[1750811969669,5.59345691,145.21,145.19,88.7]
[1750811969848,5.59345691,145.2,145.19,88.7]
[1750811970547,5.59345691,145.2,145.17,90.1722592]
[1750811970746,5.59345691,145.18,145.17,90.1722592]
[1750811970969,5.59345691,145.18,145.17,1.4722592]
[1750811971749,6.28225702,145.18,145.17,1.4722592]
[1750811972666,24.93190588,145.18,145.17,1.4722592]
[1750811975559,6.28225702,145.18,145.17,1.4722592]
[1750811975754,5.08212955,145.19,145.17,1.4722592]
[1750811976079,6.4,145.2,145.17,8.36062925]
[1750811976251,6.4,145.2,145.17,13.95408616]
[1750811976969,0.68857856,145.23,145.17,13.95408616]
[1750811977174,5.59345691,145.21,145.17,13.95408616]
[1750811977381,5.59345691,145.2,145.17,1.4722592]
[1750811977551,5.59345691,145.19,145.17,1.4722592]
[1750811978881,18.64964886,145.22,145.17,1.4722592]
[1750811978882,5.59345691,145.2,145.17,1.4722592]
[1750811979380,6.28211471,145.21,145.17,8.36070636]
[1750811979580,5.59345691,145.21,145.17,13.95416327]
[1750811981573,5.59345691,145.22,145.17,13.95416327]
[1750811982282,5.59345691,145.22,145.17,102.65416327]
[1750811982464,5.59345691,145.22,145.18,5.59345691]
[1750811982850,5.59345691,145.23,145.18,94.29345691]
[1750811984377,5.59345691,145.23,145.19,6.88752668]
[1750811984676,37.49131043,145.24,145.19,12.48098359]
[1750811984858,5.59345691,145.23,145.19,12.48098359]
[1750811985771,6.28202409,145.23,145.19,12.48098359]
[1750811986473,6.28202409,145.23,145.19,5.59345691]
[1750811986678,37.99345691,145.24,145.2,5.59345691]
[1750811986897,6.4,145.24,145.21,5.59345691]
[1750811987056,6.4,145.24,145.22,5.59345691]
[1750811987384,6.28188883,145.26,145.21,5.59345691]
[1750811987960,5.59345691,145.25,145.21,5.59345691]
[1750811989064,5.59345691,145.25,145.21,12.47986709]
[1750811989981,0.68843192,145.26,145.21,12.47986709]
[1750811990187,6.28188883,145.26,145.21,12.47986709]
[1750811990866,5.09131043,145.27,145.23,5.59345691]
[1750811991067,5.59345691,145.27,145.23,5.59345691]
[1750811991382,11.43131043,145.28,145.24,5.59345691]
[1750811991587,6.34,145.28,145.24,5.59345691]
[1750811991762,12.62179732,145.28,145.24,5.59345691]
[1750811991963,5.59345691,145.27,145.23,5.59345691]
[1750811992483,5.59345691,145.26,145.22,5.59345691]